bitfinex-derivatives/quotes_BTCF0:USTF0_20250429
["timestamp","ask_amount","ask_price","bid_price","bid_amount"]
[1745927739271,0.2415215,95195.0,95194.0,0.6402237]
[1745927739472,0.2415215,95195.0,95194.0,0.6074237]
[1745927739672,0.2415215,95195.0,95194.0,0.2466237]
[1745927741069,0.2415215,95195.0,95194.0,1.7466237]
[1745927743078,0.2415215,95195.0,95194.0,0.004]
[1745927743265,0.210059,95178.0,95167.0,0.05409687]
[1745927743460,0.210059,95178.0,95176.0,0.2100626]
[1745927743461,0.2625814,95177.0,95176.0,0.2100626]
[1745927743667,0.3560814,95177.0,95176.0,0.2100626]
[1745927744568,0.2100678,95174.0,95173.0,0.681683]
[1745927745267,0.2100678,95174.0,95173.0,0.712283]
[1745927745572,0.2100678,95174.0,95173.0,0.293183]
[1745927746564,0.2100678,95174.0,95173.0,0.295183]
[1745927746764,0.2100678,95174.0,95173.0,0.326883]
[1745927747169,0.2100678,95174.0,95173.0,0.33585989]
[1745927748871,0.0935,95177.0,95174.0,0.0525169]
[1745927749067,0.0308,95175.0,95174.0,0.0525169]
[1745927749262,0.0308,95175.0,95174.0,0.2625847]
[1745927750281,0.11741626,95187.0,95186.0,0.2100413]
[1745927750473,0.3276359,95194.0,95193.0,0.2100259]
[1745927751670,0.3608359,95194.0,95193.0,0.2100259]
[1745927751875,0.3638359,95194.0,95193.0,0.2100259]
[1745927752678,0.3668359,95194.0,95193.0,0.2100259]
[1745927757975,0.3638359,95194.0,95193.0,0.2110259]
[1745927758176,0.3608359,95194.0,95193.0,0.2120259]
[1745927758679,0.3608359,95194.0,95193.0,0.2110259]
[1745927758870,0.3608359,95194.0,95193.0,0.2120259]
[1745927760671,0.3608359,95194.0,95193.0,0.2110259]
[1745927760871,0.3608359,95194.0,95193.0,0.2120259]
[1745927761471,0.3608359,95194.0,95193.0,0.2100259]
[1745927761667,0.3608359,95194.0,95193.0,0.2110259]
[1745927765192,0.3608359,95194.0,95193.0,0.2418259]
[1745927768882,0.3608359,95194.0,95193.0,0.2408259]
[1745927769177,0.3608359,95194.0,95193.0,0.2418259]
[1745927770481,0.3608359,95194.0,95193.0,0.2408259]
[1745927770674,0.3608359,95194.0,95193.0,0.2418259]
[1745927771281,0.3608359,95194.0,95193.0,0.2408259]
[1745927776085,0.3608359,95194.0,95193.0,0.2100259]
[1745927776286,0.2100281,95192.0,95191.0,0.2100287]
[1745927776491,0.0983,95194.0,95167.0,0.47319657]
[1745927776683,0.2100678,95175.0,95174.0,0.0321]
[1745927777189,0.2100678,95175.0,95174.0,0.19368396]
[1745927777787,0.2427678,95175.0,95174.0,0.45626826]
[1745927778292,0.2427678,95175.0,95174.0,0.45826826]
[1745927778588,0.2427678,95175.0,95174.0,0.46026826]
[1745927778791,0.2427678,95175.0,95174.0,0.45826826]
[1745927778992,0.2427678,95175.0,95174.0,0.45926826]
[1745927782084,0.0327,95175.0,95174.0,0.45926826]
[1745927784080,0.0327,95175.0,95174.0,0.33926826]
[1745927785392,0.3608,95184.0,95174.0,0.10738396]
[1745927785580,0.0315,95194.0,95193.0,0.2100259]
[1745927785782,0.0946,95194.0,95193.0,0.2100259]
[1745927787279,0.0976,95194.0,95193.0,0.2100259]
[1745927788083,0.0996,95194.0,95193.0,0.2100259]
[1745927788583,0.0976,95194.0,95193.0,0.2100259]
[1745927788781,0.0976,95194.0,95193.0,0.2110259]
[1745927789378,0.0946,95194.0,95193.0,0.2120259]
[1745927789585,0.0631,95194.0,95193.0,0.2120259]
[1745927792891,0.0942,95194.0,95193.0,0.2120259]
[1745927804602,0.3042237,95194.0,95193.0,0.2120259]
[1745927806097,0.0942,95194.0,95193.0,0.2120259]
[1745927806498,0.3042237,95194.0,95193.0,0.002]
[1745927806904,0.3042237,95194.0,95193.0,0.2120259]
[1745927808990,0.3042237,95194.0,95193.0,0.002]
[1745927809499,0.3042237,95194.0,95193.0,0.2120259]
[1745927814599,0.3042237,95194.0,95193.0,0.002]
[1745927815090,0.3042237,95194.0,95193.0,0.2120259]
[1745927817403,0.3042237,95194.0,95193.0,0.2110259]
[1745927817701,0.3042237,95194.0,95193.0,0.2120259]
[1745927819297,0.0942,95194.0,95193.0,0.2120259]
[1745927819499,0.0319,95194.0,95193.0,0.2120259]
[1745927819700,0.0319,95194.0,95193.0,0.3066259]
[1745927826513,0.0319,95194.0,95193.0,0.2745259]
[1745927826514,0.2419237,95194.0,95193.0,0.2745259]
[1745927826808,0.2746237,95194.0,95193.0,0.2745259]
[1745927827010,0.0646,95194.0,95193.0,0.2745259]
[1745927827210,0.2746237,95194.0,95193.0,0.2745259]
[1745927827708,0.2746237,95194.0,95193.0,0.2755259]
[1745927828304,0.2746237,95194.0,95193.0,0.2435259]
[1745927828808,0.0646,95194.0,95193.0,0.2435259]
[1745927829707,0.2746237,95194.0,95193.0,0.2435259]
[1745927830204,0.2746237,95194.0,95193.0,0.0335]
[1745927830406,0.2746237,95194.0,95193.0,0.2435259]
[1745927831609,0.2746237,95194.0,95193.0,0.002]
[1745927831905,0.2746237,95194.0,95193.0,0.003]
[1745927832108,0.3946237,95194.0,95193.0,0.003]
[1745927832905,0.3946237,95194.0,95193.0,0.002]
[1745927833105,0.2100259,95193.0,95192.0,0.2100278]
[1745927833706,0.2749259,95193.0,95192.0,0.2100278]
[1745927834207,0.3949259,95193.0,95192.0,0.2100278]
[1745927835699,0.3949259,95193.0,95192.0,0.2110278]
[1745927836099,0.3949259,95193.0,95192.0,0.001]
[1745927836306,0.3949259,95193.0,95192.0,0.2110281]
[1745927837210,0.4999399,95193.0,95192.0,0.2110281]
[1745927838306,0.3799399,95193.0,95192.0,0.2110281]
[1745927839306,0.3799399,95193.0,95192.0,0.2100281]
[1745927839504,0.3274329,95193.0,95192.0,0.2110281]
[1745927841008,0.6882329,95193.0,95192.0,0.2110281]
[1745927842008,0.6882329,95193.0,95192.0,0.001]
[1745927842413,0.6882329,95193.0,95192.0,0.2110281]
[1745927843010,0.6882329,95193.0,95192.0,0.001]
[1745927843726,0.6882329,95193.0,95192.0,0.2432281]
[1745927844110,0.6882329,95193.0,95192.0,0.08585053]
[1745927845322,0.2100325,95191.0,95190.0,0.2100306]
[1745927845806,0.3068325,95191.0,95190.0,0.2100306]
[1745927846409,0.3068325,95191.0,95190.0,0.2110306]
[1745927848920,0.3068325,95191.0,95190.0,0.001]
[1745927850025,0.3068325,95191.0,95187.0,0.2100381]
[1745927850026,0.2100369,95188.0,95187.0,0.2100381]
[1745927850522,0.2728369,95188.0,95187.0,0.2100381]
[1745927851716,0.2728369,95188.0,95187.0,0.2110381]
[1745927852624,0.2728369,95188.0,95187.0,0.2120381]
[1745927852824,0.2728369,95188.0,95187.0,0.2110381]
[1745927856329,0.2728369,95188.0,95187.0,0.001]
[1745927857223,0.3928369,95188.0,95187.0,0.001]
[1745927857820,0.210048,95183.0,95182.0,0.2100498]
[1745927858128,0.570848,95183.0,95182.0,0.2100498]
[1745927858828,0.2100568,95180.0,95179.0,0.2100549]
[1745927859128,0.2100568,95180.0,95179.0,0.2424549]
[1745927859331,0.2731568,95180.0,95179.0,0.2424549]
[1745927860928,0.2731568,95180.0,95179.0,0.0324]
[1745927861627,0.2731568,95180.0,95179.0,0.0626]
[1745927864129,0.2429568,95180.0,95179.0,0.2726568]
[1745927873317,0.2429568,95180.0,95179.0,0.0626]
[1745927873524,0.2100678,95174.0,95173.0,0.21963849]
[1745927874630,0.2747678,95174.0,95173.0,0.22063849]
[1745927874820,0.2747678,95174.0,95173.0,0.25313849]
[1745927875625,0.2747678,95174.0,95173.0,0.28543849]
[1745927878428,0.2747678,95174.0,95173.0,0.25293849]
[1745927879428,0.2747678,95174.0,95173.0,0.22063849]
[1745927880337,0.2747678,95174.0,95173.0,0.01056849]
[1745927880636,0.2747678,95174.0,95173.0,0.22063849]
[1745927883031,0.2100678,95174.0,95173.0,0.21963849]
[1745927883435,0.2100678,95174.0,95173.0,0.28373849]
[1745927887037,0.0328,95175.0,95174.0,0.2100678]
[1745927887224,0.0328,95175.0,95174.0,0.2741678]
[1745927888139,0.2428656,95175.0,95174.0,0.3941678]
[1745927888934,0.0328,95175.0,95174.0,0.3941678]
[1745927891439,0.210048,95184.0,95174.0,0.1841]
[1745927891640,0.031,95188.0,95187.0,0.3150531]
[1745927891942,0.2100349,95189.0,95188.0,0.2100347]
[1745927892144,0.2100349,95189.0,95188.0,0.2423347]
[1745927892734,0.2100349,95189.0,95188.0,0.2743347]
[1745927893234,0.2431349,95189.0,95188.0,0.2743347]
[1745927894246,0.2461349,95189.0,95188.0,0.2743347]
[1745927894437,0.2491349,95189.0,95188.0,0.2743347]
[1745927897342,0.2491349,95189.0,95188.0,0.2423347]
[1745927899935,0.2491349,95189.0,95188.0,0.2753347]
[1745927903342,0.2441349,95189.0,95188.0,0.2753347]
[1745927903545,0.2451349,95189.0,95188.0,0.2753347]
[1745927903935,0.2451349,95189.0,95188.0,0.2423347]
[1745927904942,0.2100435,95186.0,95183.0,0.0525116]
[1745927905142,0.2100678,95174.0,95157.0,0.3608]
[1745927905342,0.2100678,95174.0,95173.0,0.21963849]
[1745927906259,0.2720678,95174.0,95173.0,0.21963849]
[1745927907041,0.6328678,95174.0,95173.0,0.22463849]
[1745927907947,0.6328678,95174.0,95173.0,0.22263849]
[1745927908148,0.6328678,95174.0,95173.0,0.22363849]
[1745927908646,0.6328678,95174.0,95173.0,0.22263849]
[1745927908848,0.6328678,95174.0,95173.0,0.22063849]
[1745927909540,0.6328678,95174.0,95173.0,0.21963849]
[1745927909741,0.6328678,95174.0,95173.0,0.22063849]
[1745927917769,0.6328678,95174.0,95173.0,0.21963849]
[1745927918655,0.6328678,95174.0,95173.0,0.00956849]
[1745927918856,0.6328678,95174.0,95173.0,0.21963849]
[1745927926681,0.0313,95174.0,95173.0,0.21963849]
[1745927926876,0.2625507,95187.0,95186.0,0.2100413]
[1745927927470,0.2949507,95187.0,95186.0,0.2100413]
[1745927927866,0.3267507,95187.0,95186.0,0.2100413]
[1745927928074,0.3297507,95187.0,95186.0,0.2100413]
[1745927928777,0.3297507,95187.0,95184.0,0.0633]
[1745927928982,0.2100435,95185.0,95184.0,0.2733438]
[1745927929373,0.2403435,95185.0,95184.0,0.2733438]
[1745927930276,0.2403435,95185.0,95184.0,0.2743438]
[1745927931275,0.2403435,95185.0,95184.0,0.2753438]
[1745927934369,0.0303,95185.0,95184.0,0.2753438]
[1745927935178,0.2403435,95185.0,95184.0,0.2753438]
[1745927936580,0.0303,95185.0,95184.0,0.2753438]
[1745927936974,0.2403435,95185.0,95184.0,0.2753438]
[1745927937577,0.0303,95185.0,95184.0,0.2753438]
[1745927943282,0.16041363,95209.0,95187.0,0.0525094]
[1745927943476,0.0301,95199.0,95198.0,0.2100149]
[1745927944289,0.2401127,95199.0,95198.0,0.2746149]
[1745927944585,0.2401127,95199.0,95198.0,0.2416149]
[1745927945180,0.2421127,95199.0,95198.0,0.2416149]
[1745927945375,0.3055127,95199.0,95198.0,0.2416149]
[1745927945975,0.2625235,95198.0,95197.0,0.2100162]
[1745927946184,0.2625428,95191.0,95190.0,0.2100316]
[1745927946479,0.2625532,95189.0,95188.0,0.2100279]
[1745927947087,0.3272532,95189.0,95188.0,0.2100279]
[1745927947680,0.3272532,95189.0,95188.0,0.2110279]
[1745927947877,0.3272532,95189.0,95188.0,0.2635359]
[1745927948782,0.3272532,95189.0,95188.0,0.2625359]
[1745927949089,0.3272532,95189.0,95188.0,0.2645359]
[1745927949479,0.3272532,95189.0,95188.0,0.002]
[1745927950089,0.4472532,95189.0,95188.0,0.002]
[1745927950975,0.4472532,95189.0,95188.0,0.001]
[1745927951177,0.4482532,95189.0,95188.0,0.001]
[1745927951580,0.2100435,95185.0,95184.0,0.2100454]
[1745927952292,0.3300435,95185.0,95184.0,0.2100454]
[1745927952482,0.3910435,95185.0,95184.0,0.2100454]
[1745927953284,0.3920435,95185.0,95184.0,0.2100454]
[1745927954390,0.0525122,95183.0,95179.0,0.052514]
[1745927954590,0.0525152,95178.0,95173.0,0.00799249]
[1745927954789,0.2100811,95168.0,95167.0,0.00157617]
[1745927954989,0.5708811,95168.0,95167.0,0.00157617]
[1745927955190,0.6908811,95168.0,95167.0,0.00157617]
[1745927955688,0.7548811,95168.0,95167.0,0.00157617]
[1745927955887,0.7548811,95168.0,95167.0,0.21165947]
[1745927956192,0.3940811,95168.0,95167.0,0.21165947]
[1745927956391,0.3631811,95168.0,95167.0,0.21465947]
[1745927956793,0.3631811,95168.0,95167.0,0.27845947]
[1745927956994,0.3631811,95168.0,95167.0,0.28045947]
[1745927957183,0.2431811,95168.0,95167.0,0.28045947]
[1745927958088,0.2431811,95168.0,95167.0,0.40045947]
[1745927959190,0.0309,95177.0,95167.0,0.18737617]
[1745927959394,0.0305,95174.0,95173.0,0.21007]
[1745927959597,0.2405678,95174.0,95173.0,0.66707]
[1745927959797,0.0305,95174.0,95173.0,0.66707]
[1745927960096,0.0305,95174.0,95173.0,0.78707]
[1745927960793,0.031,95185.0,95183.0,0.2100458]
[1745927960992,0.2405474,95184.0,95183.0,0.2100458]
[1745927962687,0.2405474,95184.0,95183.0,0.2110458]
[1745927963086,0.2405474,95184.0,95183.0,0.22137031]
[1745927963087,0.0305,95184.0,95183.0,0.22137031]
[1745927963488,0.2405458,95184.0,95183.0,0.2110458]
[1745927964089,0.2405458,95184.0,95183.0,0.2120458]
[1745927965694,0.0305,95184.0,95183.0,0.2120458]
[1745927966594,0.2405458,95184.0,95183.0,0.2120458]
[1745927969889,0.2721458,95184.0,95183.0,0.2120458]
[1745927978003,0.2721458,95184.0,95183.0,0.2110458]
[1745927978208,0.2721458,95184.0,95183.0,0.2120458]
[1745927982402,0.01491128,95184.0,95183.0,0.2120458]
[1745927982607,0.0319,95196.0,95194.0,0.1050106]
[1745927982804,0.0319,95196.0,95195.0,0.2756215]
[1745927984012,0.2419193,95196.0,95195.0,0.2756215]
[1745927984201,0.2734193,95196.0,95195.0,0.2426215]
[1745927984401,0.2744193,95196.0,95195.0,0.2100215]
[1745927984607,0.2764193,95196.0,95195.0,0.2100215]
[1745927985004,0.2100347,95191.0,95188.0,0.0658]
[1745927985203,0.0525081,95191.0,95183.0,0.2625509]
[1745927985405,0.3608,95184.0,95183.0,0.3150699]
[1745927985907,0.5708458,95184.0,95183.0,0.3150699]
[1745927986309,0.6339458,95184.0,95183.0,0.3150699]
[1745927986911,0.4239,95184.0,95183.0,0.3160699]
[1745927987111,0.3924,95184.0,95183.0,0.3160699]
[1745927988310,0.3924,95184.0,95183.0,0.5016699]
[1745927989007,0.6024458,95184.0,95183.0,0.5016699]
[1745927989215,0.6324458,95184.0,95183.0,0.5016699]
[1745927989509,0.4224,95184.0,95183.0,0.5016699]
[1745927989719,0.0316,95184.0,95183.0,0.5016699]
[1745927991000,0.2416458,95184.0,95183.0,0.5016699]
[1745927991405,0.2416458,95184.0,95183.0,0.4700699]
[1745927991602,0.2724458,95184.0,95183.0,0.4700699]
[1745927992114,0.2724458,95184.0,95183.0,0.3500699]
[1745927994817,0.2724458,95184.0,95183.0,0.035]
[1745927995513,0.0624,95184.0,95183.0,0.245048]
[1745927995714,0.2724458,95184.0,95183.0,0.035]
[1745927996308,0.210048,95183.0,95182.0,0.10267424]
[1745927996709,0.276448,95183.0,95182.0,0.10267424]
[1745927997510,0.276448,95183.0,95182.0,0.10367424]
[1745927997821,0.276448,95183.0,95182.0,0.10467424]
[1745928001113,0.276448,95183.0,95182.0,0.2120502]
[1745928003315,0.276448,95183.0,95182.0,0.002]
[1745928003514,0.2100811,95168.0,95162.0,0.01052094]
[1745928003817,0.5708811,95168.0,95162.0,0.01052094]
[1745928004314,0.2100855,95166.0,95159.0,0.15914096]
[1745928004511,0.2100855,95166.0,95160.0,0.2100981]
[1745928004815,0.2100855,95166.0,95159.0,0.15914096]
[1745928005116,0.3631855,95166.0,95159.0,0.15914096]
[1745928006016,0.3631855,95166.0,95162.0,0.2100935]
[1745928006316,0.1531,95166.0,95163.0,0.0525225]
[1745928006535,0.12,95166.0,95163.0,0.0525225]
[1745928006704,0.121,95166.0,95165.0,0.2100877]
[1745928007111,0.001,95166.0,95165.0,0.3960877]
[1745928007412,0.003,95166.0,95165.0,0.3960877]
[1745928007609,0.2130855,95166.0,95165.0,0.3960877]
[1745928007809,0.003,95166.0,95165.0,0.3960877]
[1745928008914,0.002,95166.0,95165.0,0.3960877]
[1745928009119,0.002,95166.0,95165.0,0.3980877]
[1745928009318,0.00042383,95166.0,95165.0,0.4180877]
[1745928009524,3e-08,95166.0,95165.0,0.77316769]
[1745928009718,0.0010762,95185.0,95184.0,0.2100458]
[1745928010019,0.0010762,95185.0,95184.0,0.5708458]
[1745928010207,0.0010762,95185.0,95184.0,0.6908458]
[1745928010412,0.0010762,95185.0,95184.0,0.7532458]
[1745928010817,0.0010762,95185.0,95184.0,0.7732458]
[1745928011220,0.0030762,95185.0,95184.0,0.7732458]
[1745928012314,0.0040762,95185.0,95184.0,0.7732458]
[1745928012916,0.0040762,95185.0,95184.0,0.8783058]
[1745928013419,0.0020762,95185.0,95184.0,0.8583058]
[1745928013618,0.0020762,95185.0,95184.0,0.8783058]
[1745928013819,0.0010762,95185.0,95184.0,0.7772458]
[1745928014014,0.0010762,95185.0,95184.0,0.4619258]
[1745928014215,0.2111197,95185.0,95184.0,0.3360458]
[1745928014409,0.2111197,95185.0,95184.0,0.3995258]
[1745928014818,0.0010762,95185.0,95184.0,0.4055258]
[1745928015114,0.0010762,95185.0,95184.0,0.2895258]
[1745928015314,0.0339762,95185.0,95184.0,0.2895258]
[1745928015516,0.2440197,95185.0,95184.0,0.2905258]
[1745928016020,0.2440197,95185.0,95184.0,0.2875258]
[1745928016226,0.2440197,95185.0,95184.0,0.2895258]
[1745928016418,0.2440197,95185.0,95184.0,0.2855258]
[1745928016723,0.2440197,95185.0,95184.0,0.2895258]
[1745928016926,0.0010762,95185.0,95184.0,0.2895258]
[1745928017117,0.0010762,95185.0,95184.0,0.5145858]
[1745928017312,0.0010762,95185.0,95184.0,0.5768858]
[1745928017522,0.0015,95220.0,95219.0,0.2099685]
[1745928017719,0.0524964,95212.0,95209.0,0.2734699]
[1745928017920,0.2099884,95210.0,95209.0,0.2624874]
[1745928018429,0.2099884,95210.0,95209.0,1.7824874]
[1745928018728,0.2099884,95210.0,95209.0,0.2824874]
[1745928020831,0.2099884,95210.0,95209.0,0.2299899]
[1745928021124,0.0524986,95208.0,95205.0,1.5]
[1745928021330,0.2099972,95206.0,95205.0,1.5]
[1745928021728,0.294797,95206.0,95205.0,0.2099992]
[1745928023019,0.2100149,95198.0,95196.0,0.06348]
[1745928023324,0.2100149,95198.0,95197.0,0.5708171]
[1745928023714,0.2100171,95197.0,95196.0,0.06348]
[1745928023921,0.2408171,95197.0,95196.0,0.2734993]
[1745928024121,0.2408171,95197.0,95196.0,0.06348]
[1745928024327,0.2408171,95197.0,95196.0,0.07348]
[1745928024524,0.2408171,95197.0,95196.0,0.08132824]
[1745928024824,0.2408171,95197.0,95196.0,0.29134754]
[1745928025317,0.2408171,95197.0,95196.0,0.07348]
[1745928025522,0.6016171,95197.0,95196.0,0.07348]
[1745928025719,0.2100325,95190.0,95189.0,0.2100339]
[1745928025918,0.2100325,95190.0,95189.0,0.2200339]
[1745928026529,0.2731325,95190.0,95189.0,0.2200339]
[1745928027425,0.2731325,95190.0,95189.0,0.2110339]
[1745928028229,0.2731325,95190.0,95189.0,0.2120339]
[1745928029340,0.2731325,95190.0,95189.0,0.002]
[1745928030328,0.2731325,95190.0,95189.0,0.001]
[1745928030524,0.2741325,95190.0,95189.0,0.001]
[1745928031235,0.2100413,95186.0,95185.0,0.21785313]
[1745928031423,0.2100413,95186.0,95185.0,0.2100435]
[1745928032132,0.2414413,95186.0,95185.0,0.2100435]
[1745928032833,0.2718413,95186.0,95185.0,0.2100435]
[1745928033437,0.2718413,95186.0,95185.0,0.21782315]
[1745928037429,0.0303,95187.0,95186.0,0.2100413]
[1745928037635,0.0303,95187.0,95186.0,0.4345413]
[1745928038133,0.0303,95187.0,95186.0,0.5545413]
[1745928039441,0.0524976,95209.0,95207.0,0.2099928]
[1745928039633,0.0301,95208.0,95207.0,0.2099928]
[1745928040337,0.2400949,95208.0,95207.0,0.2099928]
[1745928040940,0.2100082,95202.0,95201.0,0.262507]
[1745928041834,0.2741082,95202.0,95201.0,0.262507]
[1745928043137,0.0641,95202.0,95186.0,0.0525103]
[1745928043338,0.2100281,95192.0,95185.0,0.06029005]
[1745928043642,0.262551,95188.0,95187.0,0.0525097]
[1745928044542,0.262551,95188.0,95187.0,0.0625097]
[1745928044738,0.262551,95188.0,95187.0,0.0525097]
[1745928044942,0.3150607,95188.0,95187.0,0.2725488]
[1745928045139,0.3150607,95188.0,95187.0,0.2755488]
[1745928045541,0.262551,95188.0,95187.0,0.2755488]
[1745928045738,0.262551,95188.0,95187.0,0.2735488]
[1745928046242,0.262551,95188.0,95187.0,0.2775488]
[1745928047050,0.262551,95188.0,95187.0,0.2745488]
[1745928047633,0.2100413,95188.0,95187.0,0.2745488]
[1745928047837,0.0643,95191.0,95190.0,0.2100325]
[1745928048033,0.2743303,95191.0,95190.0,0.2200325]
[1745928048547,0.0643,95191.0,95190.0,0.2200325]
[1745928048745,0.0326,95191.0,95190.0,0.2200325]
[1745928049244,0.0326,95191.0,95190.0,0.2210325]
[1745928050137,0.0326,95191.0,95190.0,0.3410325]
[1745928051045,0.0326,95191.0,95190.0,0.3310325]
[1745928051934,0.0326,95191.0,95190.0,0.3410325]
[1745928059141,0.0326,95191.0,95190.0,2.2018325]
[1745928064347,0.0312,95205.0,95204.0,0.2100016]
[1745928064651,0.2099834,95213.0,95212.0,0.209984]
[1745928065246,0.3299834,95213.0,95212.0,0.209984]
[1745928066041,0.3339834,95213.0,95212.0,0.209984]
[1745928066451,0.3349834,95213.0,95212.0,0.209984]
[1745928068153,0.3956834,95213.0,95212.0,0.209984]
[1745928069451,0.3956834,95213.0,95212.0,0.249984]
[1745928070447,0.1857,95213.0,95212.0,0.249984]
[1745928070845,0.4285818,95213.0,95212.0,0.249984]
[1745928071046,0.4285818,95213.0,95212.0,0.26021963]
[1745928071747,0.4285818,95213.0,95212.0,0.249984]
[1745928073546,0.4285818,95213.0,95212.0,0.26034125]
[1745928074750,0.4285818,95213.0,95212.0,0.249984]
[1745928075053,0.2186,95213.0,95212.0,0.249984]
[1745928075252,0.0986,95213.0,95212.0,0.249984]
[1745928075647,0.3085818,95213.0,95212.0,0.26026366]
[1745928075953,0.3085818,95213.0,95212.0,0.04]
[1745928076147,0.4285818,95213.0,95212.0,0.04]
[1745928076346,0.2099862,95211.0,95210.0,0.2624836]
[1745928076546,0.2099862,95211.0,95210.0,0.2724836]
[1745928076747,0.105032,95211.0,95192.0,0.06388]
[1745928076953,0.315032,95197.0,95196.0,0.210011]
[1745928077156,0.2100237,95195.0,95194.0,0.2100228]
[1745928077455,0.45974239,95202.0,95178.0,0.15914096]
[1745928077456,0.0525135,95181.0,95178.0,0.15914096]
[1745928077656,0.2100568,95179.0,95178.0,0.15914096]
[1745928078159,0.3952568,95179.0,95178.0,0.15914096]
[1745928078351,0.3952568,95179.0,95178.0,0.36919996]
[1745928078853,0.3962568,95179.0,95178.0,0.36919996]
[1745928079058,0.3962568,95179.0,95178.0,0.15914096]
[1745928079446,0.3972568,95179.0,95178.0,0.15914096]
[1745928079852,0.3972568,95179.0,95178.0,0.210059]
[1745928079853,0.4497714,95179.0,95178.0,0.210059]
[1745928080450,0.2100612,95177.0,95176.0,0.00157592]
[1745928081954,0.2100612,95177.0,95176.0,0.21163932]
[1745928082654,0.2100612,95177.0,95176.0,0.00157592]
[1745928083152,0.2100612,95177.0,95157.0,0.0304]
[1745928083153,0.3151512,95164.0,95163.0,0.2100787]
[1745928083352,0.3151512,95164.0,95163.0,0.2400787]
[1745928084758,0.3151512,95164.0,95163.0,0.24778827]
[1745928085147,0.3151512,95164.0,95163.0,0.24878827]
[1745928085554,0.3151512,95164.0,95163.0,0.24778827]
[1745928085857,0.3151512,95164.0,95163.0,0.24878827]
[1745928086448,0.3151512,95164.0,95163.0,0.24978827]
[1745928087364,0.0302,95169.0,95168.0,0.2100811]
[1745928087552,0.0302,95169.0,95168.0,0.3700811]
[1745928088157,0.0302,95169.0,95168.0,0.5235811]
[1745928089559,0.0302,95169.0,95168.0,0.62865709]
[1745928089866,0.0302,95169.0,95168.0,0.63565709]
[1745928090463,0.0302,95169.0,95168.0,2.13565709]
[1745928091364,0.0302,95169.0,95168.0,2.13265709]
[1745928091574,0.0302,95169.0,95168.0,2.13665709]
[1745928091765,0.0302,95169.0,95168.0,2.13265709]
[1745928092066,0.0302,95169.0,95168.0,2.0325811]
[1745928092460,0.0302,95169.0,95168.0,2.0285811]
[1745928092667,0.0302,95169.0,95168.0,2.0325811]
[1745928093770,0.0302,95169.0,95168.0,2.0965411]
[1745928095467,0.0636,95182.0,95181.0,0.2100524]
[1745928095666,0.001,95196.0,95184.0,0.2100458]
[1745928095864,0.0307,95195.0,95184.0,0.4751058]
[1745928096366,0.0311,95203.0,95202.0,0.210006]
[1745928097061,0.0311,95203.0,95202.0,0.240006]
[1745928097368,0.0942,95203.0,95202.0,0.240006]
[1745928098162,0.0631,95203.0,95202.0,0.240006]
[1745928098364,0.0339,95203.0,95202.0,0.240006]
[1745928098859,0.0309,95203.0,95202.0,0.240006]
[1745928099166,0.0309,95203.0,95202.0,0.363006]
[1745928100563,0.0309,95203.0,95202.0,0.37352829]
[1745928102168,0.0309,95203.0,95202.0,0.25352829]
[1745928103070,0.0309,95203.0,95202.0,0.28552829]
[1745928104259,0.0309,95203.0,95202.0,0.213006]
[1745928104260,0.2409038,95203.0,95202.0,0.213006]
[1745928104470,0.2409038,95203.0,95202.0,0.003]
[1745928104865,0.2100105,95200.0,95199.0,0.2625129]
[1745928106077,0.2100105,95200.0,95199.0,0.2635129]
[1745928106377,0.2100105,95200.0,95199.0,0.2645129]
[1745928107677,0.2100105,95200.0,95199.0,0.2635129]
[1745928108068,0.2100105,95200.0,95199.0,0.2625129]
[1745928108671,0.2100105,95200.0,95199.0,0.2100098]
[1745928110071,0.3300105,95200.0,95199.0,0.2100098]
[1745928110264,0.3300105,95200.0,95199.0,0.2200098]
[1745928110468,0.3300105,95200.0,95199.0,0.2100098]
[1745928112076,0.3300105,95200.0,95199.0,0.2300098]
[1745928112572,0.6908105,95200.0,95199.0,0.2300098]
[1745928115167,0.6918105,95200.0,95199.0,0.2300098]
[1745928115566,0.6928105,95200.0,95199.0,0.2300098]
[1745928116276,0.6928105,95200.0,95199.0,0.02]
[1745928116674,0.6928105,95200.0,95199.0,0.2300127]
[1745928117066,0.6928105,95200.0,95199.0,0.02]
[1745928117273,0.2100347,95191.0,95190.0,0.0525081]
[1745928117576,0.2625428,95191.0,95190.0,0.2100265]
[1745928117770,0.3561428,95191.0,95190.0,0.2100265]
[1745928118282,0.2100524,95181.0,95180.0,0.210053]
[1745928118476,0.2100524,95181.0,95180.0,0.230053]
[1745928118874,0.0615,95183.0,95182.0,0.2100502]
[1745928119068,0.271548,95183.0,95182.0,0.2200502]
[1745928119972,0.0615,95183.0,95182.0,0.2200502]
[1745928120173,0.0615,95183.0,95182.0,0.5808502]
[1745928120684,0.271548,95183.0,95182.0,0.5849502]
[1745928120977,0.0615,95183.0,95182.0,0.5849502]
[1745928121677,0.0615,95183.0,95182.0,0.5859502]
[1745928122079,0.0615,95183.0,95182.0,0.5879502]
[1745928122584,0.0615,95183.0,95182.0,0.5899502]
[1745928123973,0.0615,95183.0,95182.0,0.5879502]
[1745928124181,0.0615,95183.0,95182.0,0.5899502]
[1745928124383,0.0615,95183.0,95182.0,0.5869502]
[1745928124585,0.0615,95183.0,95182.0,0.5899502]
[1745928125087,0.0615,95183.0,95182.0,0.5838502]
[1745928125285,0.0615,95183.0,95182.0,0.5858502]
[1745928125583,0.0615,95183.0,95182.0,0.5838502]
[1745928125787,0.0615,95183.0,95182.0,0.5858502]
[1745928125988,0.0615,95183.0,95182.0,0.5848502]
[1745928127587,0.0615,95183.0,95182.0,0.5828502]
[1745928127981,0.0615,95183.0,95182.0,0.5848502]
[1745928128381,0.271548,95183.0,95182.0,0.014]
[1745928128588,0.271548,95183.0,95182.0,0.004]
[1745928129193,0.391548,95183.0,95182.0,0.004]
[1745928130381,0.391548,95183.0,95182.0,0.2140502]
[1745928130586,0.391548,95183.0,95182.0,0.004]
[1745928130789,0.391548,95183.0,95182.0,0.2140502]
[1745928131389,0.393548,95183.0,95182.0,0.2120502]
[1745928131587,0.394548,95183.0,95182.0,0.2100502]
[1745928133883,0.0525158,95177.0,95174.0,0.0540926]
[1745928134095,0.2100811,95168.0,95150.0,0.06412]
[1745928134301,0.3608,95168.0,95143.0,0.0541105]
[1745928134497,0.2101274,95147.0,95143.0,0.0541105]
[1745928134797,0.2101274,95147.0,95146.0,0.36927056]
[1745928135005,0.2101274,95147.0,95146.0,0.37927056]
[1745928135198,0.2101274,95147.0,95146.0,0.36927056]
[1745928135412,0.0311,95147.0,95146.0,0.36927056]
[1745928135716,0.0311,95147.0,95146.0,0.37927056]
[1745928135902,0.0311,95147.0,95146.0,0.2261296]